[Event "*** SCC Grand Prix: Titled Tuesday Blitz"]
[Site "Chess.com"]
[Date "2020.07.07"]
[Round "4"]
[White "ErikBlomqvist"]
[Black "Reader777"]
[Result "1/2-1/2"]
[WhiteElo "2510"]
[BlackElo "2668"]
[TimeControl "180+1"]
[EndTime "10:39:13 PDT"]
[Termination "Game drawn by repetition"]

1. e4 {[%clk 0:03:00.9]} 1... c5 {[%clk 0:02:59.7]} 2. Nf3 {[%clk 0:02:57.4]}
2... d6 {[%clk 0:02:58.4]} 3. d4 {[%clk 0:02:57]} 3... cxd4 {[%clk 0:02:58.8]}
4. Qxd4 {[%clk 0:02:57.9]} 4... a6 {[%clk 0:02:56.3]} 5. Be2 {[%clk 0:02:57.6]}
5... Nc6 {[%clk 0:02:55.5]} 6. Qe3 {[%clk 0:02:58.1]} 6... g6 {[%clk 0:02:54.8]}
7. O-O {[%clk 0:02:58.3]} 7... Bg7 {[%clk 0:02:54.8]} 8. h3 {[%clk 0:02:58.6]}
8... Nf6 {[%clk 0:02:53.9]} 9. c4 {[%clk 0:02:58.7]} 9... O-O {[%clk 0:02:53.5]}
10. Nc3 {[%clk 0:02:59]} 10... Nd7 {[%clk 0:02:52.1]} 11. b3 {[%clk 0:02:54.7]}
11... Nde5 {[%clk 0:02:42.1]} 12. Rd1 {[%clk 0:02:37.2]} 12... Qa5 {[%clk
0:02:18.9]} 13. Bb2 {[%clk 0:02:34.1]} 13... Nxf3+ {[%clk 0:02:11.4]} 14. Bxf3
{[%clk 0:02:35]} 14... Qc5 {[%clk 0:02:09]} 15. Qd2 {[%clk 0:02:07.5]} 15... Nd4
{[%clk 0:01:59.7]} 16. Be2 {[%clk 0:02:02.5]} 16... Nxe2+ {[%clk 0:01:50]} 17.
Qxe2 {[%clk 0:01:57.9]} 17... Qg5 {[%clk 0:01:17.2]} 18. Kh1 {[%clk 0:01:45]}
18... f5 {[%clk 0:01:09.8]} 19. exf5 {[%clk 0:01:35]} 19... Bxf5 {[%clk
0:01:08.2]} 20. Re1 {[%clk 0:01:10.2]} 20... Rae8 {[%clk 0:01:02.1]} 21. Nd5
{[%clk 0:01:05.6]} 21... Bxb2 {[%clk 0:00:55.6]} 22. Qxb2 {[%clk 0:01:06.5]}
22... e6 {[%clk 0:00:44.7]} 23. Nc3 {[%clk 0:00:34.3]} 23... Bxh3 {[%clk
0:00:26.1]} 24. gxh3 {[%clk 0:00:35.2]} 24... Rf3 {[%clk 0:00:25.8]} 25. Re3
{[%clk 0:00:35.8]} 25... Rxe3 {[%clk 0:00:22.9]} 26. fxe3 {[%clk 0:00:36.7]}
26... Qxe3 {[%clk 0:00:21.7]} 27. Rf1 {[%clk 0:00:36.7]} 27... Qxh3+ {[%clk
0:00:20.7]} 28. Kg1 {[%clk 0:00:36.9]} 28... Qg3+ {[%clk 0:00:21]} 29. Kh1
{[%clk 0:00:35.9]} 29... Qh3+ {[%clk 0:00:19]} 30. Kg1 {[%clk 0:00:36.2]} 30...
Qg3+ {[%clk 0:00:18.5]} 31. Kh1 {[%clk 0:00:36.5]} 31... Qh3+ {[%clk 0:00:18.6]}
1/2-1/2

[Event "*** SCC Grand Prix: Titled Tuesday Blitz"]
[Site "Chess.com"]
[Date "2020.07.07"]
[Round "4"]
[White "tteshan"]
[Black "grandcoach"]
[Result "0-1"]
[WhiteElo "2288"]
[BlackElo "2116"]
[TimeControl "180+1"]
[EndTime "10:39:13 PDT"]
[Termination "grandcoach won by resignation"]

1. e4 {[%clk 0:03:00.9]} 1... c5 {[%clk 0:02:47.6]} 2. Nf3 {[%clk 0:03:00]} 2...
Nc6 {[%clk 0:02:40.8]} 3. d4 {[%clk 0:03:00.3]} 3... cxd4 {[%clk 0:02:41.2]} 4.
Nxd4 {[%clk 0:03:01]} 4... e5 {[%clk 0:02:41.5]} 5. Nb5 {[%clk 0:02:58.8]} 5...
d6 {[%clk 0:02:41.7]} 6. N1c3 {[%clk 0:02:57.4]} 6... a6 {[%clk 0:02:40.6]} 7.
Na3 {[%clk 0:02:56.8]} 7... b5 {[%clk 0:02:41]} 8. Nd5 {[%clk 0:02:56.2]} 8...
Nge7 {[%clk 0:02:41.5]} 9. Bg5 {[%clk 0:02:32.4]} 9... f6 {[%clk 0:02:41.5]} 10.
Qh5+ {[%clk 0:02:19.2]} 10... g6 {[%clk 0:02:41.8]} 11. Nxf6+ {[%clk 0:02:17.4]}
11... Kf7 {[%clk 0:02:42.2]} 12. Qf3 {[%clk 0:02:16.3]} 12... Nd4 {[%clk
0:02:41.3]} 13. Qd3 {[%clk 0:02:05.4]} 13... h6 {[%clk 0:02:40]} 14. c3 {[%clk
0:01:37.7]} 14... hxg5 {[%clk 0:02:35.6]} 15. cxd4 {[%clk 0:01:37.2]} 15... Kxf6
{[%clk 0:02:35.4]} 16. dxe5+ {[%clk 0:01:37.7]} 16... Kf7 {[%clk 0:02:14.9]} 17.
exd6 {[%clk 0:01:34.3]} 17... Nc6 {[%clk 0:02:15.4]} 18. Qd5+ {[%clk 0:01:33]}
18... Be6 {[%clk 0:02:12.2]} 19. Qxc6 {[%clk 0:01:32.1]} 19... Bxd6 {[%clk
0:01:51.9]} 20. Qb7+ {[%clk 0:01:13.8]} 20... Kg8 {[%clk 0:01:43.2]} 21. Be2
{[%clk 0:01:07.1]} 21... Rh7 {[%clk 0:01:27.6]} 22. Qc6 {[%clk 0:00:59.9]} 22...
Rc7 {[%clk 0:01:27.1]} 23. Qb6 {[%clk 0:00:43.5]} 23... Rc1+ {[%clk 0:01:25.8]}
24. Rxc1 {[%clk 0:00:43.2]} 24... Qxb6 {[%clk 0:01:26.4]} 25. O-O {[%clk
0:00:40.6]} 25... Rc8 {[%clk 0:01:21.3]} 26. Rcd1 {[%clk 0:00:31]} 26... Qc7
{[%clk 0:01:10.2]} 27. h3 {[%clk 0:00:22.2]} 27... Bxa2 {[%clk 0:01:02.6]} 28.
Rd2 {[%clk 0:00:19]} 28... Bh2+ {[%clk 0:00:59]} 29. Kh1 {[%clk 0:00:18.5]}
29... Bf4 {[%clk 0:00:58.9]} 30. Rfd1 {[%clk 0:00:18.1]} 30... Bxd2 {[%clk
0:00:58.1]} 31. Rxd2 {[%clk 0:00:18.6]} 31... Bb3 {[%clk 0:00:55.1]} 32. Rd4
{[%clk 0:00:14.8]} 32... Qc1+ {[%clk 0:00:51.6]} 33. Kh2 {[%clk 0:00:15.2]}
33... Qf4+ {[%clk 0:00:51]} 34. Kh1 {[%clk 0:00:14.6]} 34... Rc1+ {[%clk
0:00:50]} 0-1

[Event "*** SCC Grand Prix: Titled Tuesday Blitz"]
[Site "Chess.com"]
[Date "2020.07.07"]
[Round "4"]
[White "OnePeculiarConundrum"]
[Black "MestreSoares"]
[Result "0-1"]
[WhiteElo "2352"]
[BlackElo "2117"]
[TimeControl "180+1"]
[EndTime "10:39:13 PDT"]
[Termination "MestreSoares won by resignation"]

1. e4 {[%clk 0:03:00.9]} 1... Nf6 {[%clk 0:02:59.6]} 2. e5 {[%clk 0:03:00]} 2...
Nd5 {[%clk 0:02:59.7]} 3. c4 {[%clk 0:02:59.8]} 3... Nb6 {[%clk 0:02:59.9]} 4.
d4 {[%clk 0:02:59.6]} 4... d6 {[%clk 0:03:00.1]} 5. exd6 {[%clk 0:02:59.8]} 5...
exd6 {[%clk 0:02:59.9]} 6. Nc3 {[%clk 0:02:58]} 6... Be7 {[%clk 0:03:00.1]} 7.
Be3 {[%clk 0:02:57.7]} 7... Nc6 {[%clk 0:02:58.7]} 8. Nf3 {[%clk 0:02:55.8]}
8... Bg4 {[%clk 0:02:58.4]} 9. Be2 {[%clk 0:02:54.4]} 9... O-O {[%clk
0:02:56.7]} 10. b3 {[%clk 0:02:53.9]} 10... Bf6 {[%clk 0:02:55.8]} 11. Rc1
{[%clk 0:02:53.4]} 11... Qd7 {[%clk 0:02:54.4]} 12. O-O {[%clk 0:02:52]} 12...
Rae8 {[%clk 0:02:52.4]} 13. d5 {[%clk 0:02:41]} 13... Bxf3 {[%clk 0:02:49.8]}
14. Bxf3 {[%clk 0:02:40.4]} 14... Ne5 {[%clk 0:02:49.8]} 15. Be2 {[%clk
0:02:39.9]} 15... Ng6 {[%clk 0:02:49.2]} 16. Bg4 {[%clk 0:02:38.6]} 16... Qd8
{[%clk 0:02:47.1]} 17. h3 {[%clk 0:02:36.7]} 17... Bxc3 {[%clk 0:02:40.2]} 18.
Rxc3 {[%clk 0:02:36.2]} 18... Nd7 {[%clk 0:02:40.1]} 19. Be2 {[%clk 0:02:30.3]}
19... b6 {[%clk 0:02:38.8]} 20. b4 {[%clk 0:02:29.6]} 20... Qa8 {[%clk
0:02:31.2]} 21. a3 {[%clk 0:02:26.6]} 21... a5 {[%clk 0:02:30.4]} 22. Qb3 {[%clk
0:02:25.8]} 22... axb4 {[%clk 0:02:28.8]} 23. axb4 {[%clk 0:02:25.8]} 23... Qb7
{[%clk 0:02:25.3]} 24. Ra1 {[%clk 0:02:24.5]} 24... Ra8 {[%clk 0:02:24.8]} 25.
Rcc1 {[%clk 0:02:24.3]} 25... Rxa1 {[%clk 0:02:24.1]} 26. Rxa1 {[%clk
0:02:25.2]} 26... Ra8 {[%clk 0:02:23.8]} 27. Qb2 {[%clk 0:02:24.5]} 27... Ra7
{[%clk 0:02:02.5]} 28. Bd4 {[%clk 0:02:00.9]} 28... f6 {[%clk 0:02:00.2]} 29.
Bg4 {[%clk 0:01:59.8]} 29... Nde5 {[%clk 0:01:52.3]} 30. Be6+ {[%clk 0:01:59.5]}
30... Kf8 {[%clk 0:01:52.2]} 31. Rxa7 {[%clk 0:01:57.2]} 31... Qxa7 {[%clk
0:01:50.5]} 32. Qc3 {[%clk 0:01:51.3]} 32... Qa2 {[%clk 0:01:39.5]} 33. c5
{[%clk 0:01:49.7]} 33... Nf4 {[%clk 0:01:32.7]} 34. Qe3 {[%clk 0:01:33.2]} 34...
Ne2+ {[%clk 0:01:25.9]} 35. Kh2 {[%clk 0:01:31.9]} 35... Nxd4 {[%clk 0:01:15.6]}
36. Qxd4 {[%clk 0:01:32.8]} 36... Qc4 {[%clk 0:01:07.3]} 37. Qa1 {[%clk
0:01:00.8]} 37... g5 {[%clk 0:00:50]} 38. Qa8+ {[%clk 0:00:59.4]} 38... Kg7
{[%clk 0:00:49.1]} 39. Qg8+ {[%clk 0:00:59.3]} 39... Kh6 {[%clk 0:00:48.8]} 40.
Qf8+ {[%clk 0:00:59.5]} 40... Kg6 {[%clk 0:00:47.6]} 41. cxd6 {[%clk 0:00:43.5]}
41... cxd6 {[%clk 0:00:36]} 42. Qf7+ {[%clk 0:00:42.6]} 42... Nxf7 {[%clk
0:00:34.8]} 0-1

[Event "*** SCC Grand Prix: Titled Tuesday Blitz"]
[Site "Chess.com"]
[Date "2020.07.07"]
[Round "4"]
[White "Semetey"]
[Black "KobyKalavannan"]
[Result "0-1"]
[WhiteElo "2468"]
[BlackElo "2637"]
[TimeControl "180+1"]
[EndTime "10:39:14 PDT"]
[Termination "KobyKalavannan won by checkmate"]

1. Nf3 {[%clk 0:03:00.9]} 1... c5 {[%clk 0:03:00.1]} 2. g3 {[%clk 0:02:59.6]}
2... Nc6 {[%clk 0:03:00.4]} 3. Bg2 {[%clk 0:02:59.9]} 3... d5 {[%clk 0:03:01.1]}
4. O-O {[%clk 0:03:00]} 4... Nf6 {[%clk 0:03:01.5]} 5. d3 {[%clk 0:02:58.6]}
5... g6 {[%clk 0:03:01]} 6. Nbd2 {[%clk 0:02:58.5]} 6... Bg7 {[%clk 0:03:01.3]}
7. e4 {[%clk 0:02:58.8]} 7... O-O {[%clk 0:03:01.7]} 8. Re1 {[%clk 0:02:55]}
8... e5 {[%clk 0:02:56.6]} 9. c3 {[%clk 0:02:48.2]} 9... h6 {[%clk 0:02:51.5]}
10. a4 {[%clk 0:02:44.7]} 10... Be6 {[%clk 0:02:48.6]} 11. exd5 {[%clk
0:02:42.6]} 11... Nxd5 {[%clk 0:02:47.7]} 12. Nc4 {[%clk 0:02:42.6]} 12... Qc7
{[%clk 0:02:47.9]} 13. a5 {[%clk 0:02:30.8]} 13... Rfe8 {[%clk 0:02:44.8]} 14.
Qa4 {[%clk 0:02:22.1]} 14... Rad8 {[%clk 0:02:41.5]} 15. Qb5 {[%clk 0:02:10.2]}
15... a6 {[%clk 0:02:24.4]} 16. Qa4 {[%clk 0:02:00.1]} 16... f5 {[%clk 0:02:24]}
17. Bd2 {[%clk 0:01:37.9]} 17... Bf7 {[%clk 0:02:22.4]} 18. Re2 {[%clk
0:01:34.1]} 18... Nf6 {[%clk 0:02:05.6]} 19. Rae1 {[%clk 0:01:10.2]} 19... Rxd3
{[%clk 0:01:39.7]} 20. Nfxe5 {[%clk 0:00:51.2]} 20... Nxe5 {[%clk 0:01:40.6]}
21. Nxe5 {[%clk 0:00:15.6]} 21... Rxd2 {[%clk 0:01:31]} 22. Rxd2 {[%clk
0:00:12.1]} 22... Rxe5 {[%clk 0:01:31.3]} 23. Rxe5 {[%clk 0:00:10.6]} 23... Qxe5
{[%clk 0:01:32.2]} 24. Qd1 {[%clk 0:00:09.6]} 24... Ne4 {[%clk 0:01:29.6]} 25.
Bxe4 {[%clk 0:00:09]} 25... fxe4 {[%clk 0:01:29.2]} 26. Rd8+ {[%clk 0:00:09.4]}
26... Kh7 {[%clk 0:01:29.3]} 27. Rd7 {[%clk 0:00:09.8]} 27... Qf5 {[%clk
0:01:23.9]} 28. Rxb7 {[%clk 0:00:09.8]} 28... Bd5 {[%clk 0:01:18.9]} 29. Rc7
{[%clk 0:00:08.3]} 29... e3 {[%clk 0:01:06.5]} 30. fxe3 {[%clk 0:00:08.5]} 30...
Qe4 {[%clk 0:01:05.2]} 31. Kf2 {[%clk 0:00:08.9]} 31... Qg2+ {[%clk 0:00:48.6]}
32. Ke1 {[%clk 0:00:09.1]} 32... Bf3 {[%clk 0:00:48.8]} 33. Qd6 {[%clk
0:00:08.5]} 33... Qe2# {[%clk 0:00:48.3]} 0-1

[Event "*** SCC Grand Prix: Titled Tuesday Blitz"]
[Site "Chess.com"]
[Date "2020.07.07"]
[Round "4"]
[White "FLamps8"]
[Black "floplover"]
[Result "1-0"]
[WhiteElo "2585"]
[BlackElo "2299"]
[TimeControl "180+1"]
[EndTime "10:39:16 PDT"]
[Termination "FLamps8 won on time"]

1. d4 {[%clk 0:03:00.9]} 1... d5 {[%clk 0:02:59.8]} 2. c4 {[%clk 0:03:00.1]}
2... e6 {[%clk 0:03:00]} 3. Nc3 {[%clk 0:02:59.6]} 3... Bb4 {[%clk 0:02:59.9]}
4. Qb3 {[%clk 0:02:56.9]} 4... c5 {[%clk 0:02:56.1]} 5. dxc5 {[%clk 0:02:55]}
5... Nc6 {[%clk 0:02:46.2]} 6. a3 {[%clk 0:02:34.3]} 6... Ba5 {[%clk 0:01:33.4]}
7. cxd5 {[%clk 0:02:01]} 7... exd5 {[%clk 0:01:31]} 8. e3 {[%clk 0:02:01.1]}
8... Nf6 {[%clk 0:01:23.9]} 9. Nf3 {[%clk 0:01:54.8]} 9... Ne4 {[%clk
0:01:11.9]} 10. Bd2 {[%clk 0:01:33.5]} 10... Nxc5 {[%clk 0:01:09.4]} 11. Qc2
{[%clk 0:01:31.9]} 11... Ne6 {[%clk 0:00:48.9]} 12. Bd3 {[%clk 0:01:16.2]} 12...
h6 {[%clk 0:00:30.2]} 13. O-O {[%clk 0:01:10.2]} 13... O-O {[%clk 0:00:30.7]}
14. b4 {[%clk 0:01:06.3]} 14... Bb6 {[%clk 0:00:28.9]} 15. b5 {[%clk 0:00:44.2]}
15... Nb8 {[%clk 0:00:20.2]} 16. Rad1 {[%clk 0:00:40.5]} 16... d4 {[%clk
0:00:17.8]} 17. exd4 {[%clk 0:00:40]} 17... Nxd4 {[%clk 0:00:16.7]} 18. Nxd4
{[%clk 0:00:39.6]} 18... Bxd4 {[%clk 0:00:15.4]} 19. Be3 {[%clk 0:00:32.6]}
19... Kh8 {[%clk 0:00:03.8]} 20. Be4 {[%clk 0:00:26.8]} 20... Be6 {[%clk
0:00:02.5]} 21. Bxd4 {[%clk 0:00:25.9]} 1-0

[Event "*** SCC Grand Prix: Titled Tuesday Blitz"]
[Site "Chess.com"]
[Date "2020.07.07"]
[Round "4"]
[White "Quattroporte300"]
[Black "FMalexhdez"]
[Result "0-1"]
[WhiteElo "2288"]
[BlackElo "2135"]
[TimeControl "180+1"]
[EndTime "10:39:18 PDT"]
[Termination "FMalexhdez won by resignation"]

1. e4 {[%clk 0:03:00.9]} 1... c5 {[%clk 0:02:58.4]} 2. Nf3 {[%clk 0:03:00.7]}
2... d6 {[%clk 0:02:58.9]} 3. d4 {[%clk 0:03:01.2]} 3... cxd4 {[%clk 0:02:59.5]}
4. Nxd4 {[%clk 0:03:02.1]} 4... Nf6 {[%clk 0:02:59.9]} 5. Nc3 {[%clk 0:03:02.1]}
5... a6 {[%clk 0:03:00.5]} 6. h3 {[%clk 0:03:02]} 6... e5 {[%clk 0:02:58.3]} 7.
Nde2 {[%clk 0:03:01.8]} 7... h5 {[%clk 0:02:58.3]} 8. Bg5 {[%clk 0:03:02.1]}
8... Be7 {[%clk 0:02:50.9]} 9. Bxf6 {[%clk 0:03:01.3]} 9... Bxf6 {[%clk
0:02:50.4]} 10. Nd5 {[%clk 0:03:02.2]} 10... Nc6 {[%clk 0:02:44.1]} 11. Nec3
{[%clk 0:02:50.4]} 11... Be6 {[%clk 0:02:40.1]} 12. Nxf6+ {[%clk 0:02:48.5]}
12... gxf6 {[%clk 0:02:30]} 13. Nd5 {[%clk 0:02:46.3]} 13... f5 {[%clk
0:02:27.8]} 14. exf5 {[%clk 0:02:40.5]} 14... Bxf5 {[%clk 0:02:26.9]} 15. Ne3
{[%clk 0:02:38.5]} 15... Be6 {[%clk 0:02:22.8]} 16. Be2 {[%clk 0:02:22.3]} 16...
Nd4 {[%clk 0:02:19.1]} 17. Bxh5 {[%clk 0:02:15.4]} 17... Qg5 {[%clk 0:02:15.5]}
18. Bf3 {[%clk 0:02:04.7]} 18... O-O-O {[%clk 0:01:57.9]} 19. c3 {[%clk
0:01:36.5]} 19... Nxf3+ {[%clk 0:01:53.4]} 20. Qxf3 {[%clk 0:01:36.3]} 20... d5
{[%clk 0:01:47.9]} 21. Nc2 {[%clk 0:00:58.1]} 21... Bf5 {[%clk 0:01:35.7]} 22.
Nb4 {[%clk 0:00:49.6]} 22... Be4 {[%clk 0:01:35.2]} 23. Qg3 {[%clk 0:00:47.2]}
23... Qxg3 {[%clk 0:01:32.3]} 24. fxg3 {[%clk 0:00:47.7]} 24... Bxg2 {[%clk
0:01:31.9]} 25. Rh2 {[%clk 0:00:46.1]} 25... Bxh3 {[%clk 0:01:28.2]} 26. Kf2
{[%clk 0:00:45.1]} 26... Be6 {[%clk 0:01:25.9]} 27. Rxh8 {[%clk 0:00:29.1]}
27... Rxh8 {[%clk 0:01:25.1]} 28. Kg2 {[%clk 0:00:29.6]} 28... a5 {[%clk
0:01:22.9]} 29. Nd3 {[%clk 0:00:28.7]} 29... f6 {[%clk 0:01:08.1]} 30. Nc5
{[%clk 0:00:27.8]} 30... Bd7 {[%clk 0:01:03.1]} 31. Rf1 {[%clk 0:00:26.1]} 31...
Rf8 {[%clk 0:00:59.2]} 32. Kf2 {[%clk 0:00:20.2]} 32... b6 {[%clk 0:00:55.9]}
33. Nd3 {[%clk 0:00:09.8]} 33... Bb5 {[%clk 0:00:55.1]} 34. Ke3 {[%clk
0:00:07.8]} 34... e4 {[%clk 0:00:50.1]} 35. a4 {[%clk 0:00:05.6]} 35... Bxd3
{[%clk 0:00:49.8]} 0-1

[Event "*** SCC Grand Prix: Titled Tuesday Blitz"]
[Site "Chess.com"]
[Date "2020.07.07"]
[Round "4"]
[White "DariaVoit"]
[Black "Lagmantr"]
[Result "0-1"]
[WhiteElo "2478"]
[BlackElo "2656"]
[TimeControl "180+1"]
[EndTime "10:39:20 PDT"]
[Termination "Lagmantr won by resignation"]

1. d4 {[%clk 0:03:00.9]} 1... d5 {[%clk 0:02:56.3]} 2. Nf3 {[%clk 0:03:01.3]}
2... Nf6 {[%clk 0:02:54.8]} 3. c4 {[%clk 0:03:01.8]} 3... e6 {[%clk 0:02:54.6]}
4. g3 {[%clk 0:03:02.2]} 4... dxc4 {[%clk 0:02:53.9]} 5. Bg2 {[%clk 0:03:03.1]}
5... a6 {[%clk 0:02:54.3]} 6. O-O {[%clk 0:03:03]} 6... Nc6 {[%clk 0:02:54.7]}
7. e3 {[%clk 0:03:03]} 7... Rb8 {[%clk 0:02:54.8]} 8. Qe2 {[%clk 0:02:53.2]}
8... b5 {[%clk 0:02:53.3]} 9. b3 {[%clk 0:02:53.8]} 9... cxb3 {[%clk 0:02:50.9]}
10. axb3 {[%clk 0:02:54.7]} 10... Bb7 {[%clk 0:02:49.7]} 11. Bd2 {[%clk
0:02:48.1]} 11... Be7 {[%clk 0:02:43.9]} 12. Rc1 {[%clk 0:02:48.4]} 12... O-O
{[%clk 0:02:42.9]} 13. Ne5 {[%clk 0:02:36.4]} 13... Nxe5 {[%clk 0:02:31.4]} 14.
dxe5 {[%clk 0:02:23.1]} 14... Bxg2 {[%clk 0:02:29.2]} 15. Kxg2 {[%clk
0:02:00.7]} 15... Qd5+ {[%clk 0:02:26.7]} 16. f3 {[%clk 0:02:01.2]} 16... Qxe5
{[%clk 0:02:25.6]} 17. Rxa6 {[%clk 0:02:00.5]} 17... Ra8 {[%clk 0:02:14.1]} 18.
Rac6 {[%clk 0:01:55.1]} 18... Bd6 {[%clk 0:02:08.7]} 19. Bc3 {[%clk 0:01:48.3]}
19... Qd5 {[%clk 0:02:08.6]} 20. Bxf6 {[%clk 0:01:34.6]} 20... gxf6 {[%clk
0:02:09.5]} 21. Qc2 {[%clk 0:01:19.3]} 21... Ra1 {[%clk 0:01:53.9]} 22. e4
{[%clk 0:01:08.2]} 22... Qg5 {[%clk 0:01:48.8]} 23. Rd1 {[%clk 0:00:59.3]} 23...
Rfa8 {[%clk 0:01:45.5]} 24. Nc3 {[%clk 0:00:58]} 24... Rxd1 {[%clk 0:01:29.5]}
25. Qxd1 {[%clk 0:00:57.9]} 25... h5 {[%clk 0:01:20.3]} 26. Qd3 {[%clk
0:00:49.9]} 26... h4 {[%clk 0:01:10.1]} 27. Ne2 {[%clk 0:00:23.7]} 27... Ra1
{[%clk 0:00:57]} 28. f4 {[%clk 0:00:18.8]} 28... Qh5 {[%clk 0:00:45.8]} 29. Qf3
{[%clk 0:00:05.3]} 29... h3+ {[%clk 0:00:43.9]} 30. Kf2 {[%clk 0:00:05.2]} 30...
Rf1+ {[%clk 0:00:44.3]} 0-1

[Event "*** SCC Grand Prix: Titled Tuesday Blitz"]
[Site "Chess.com"]
[Date "2020.07.07"]
[Round "4"]
[White "ApoIogiA"]
[Black "sasko1234"]
[Result "0-1"]
[WhiteElo "2125"]
[BlackElo "2397"]
[TimeControl "180+1"]
[EndTime "10:39:20 PDT"]
[Termination "sasko1234 won by resignation"]

1. d4 {[%clk 0:03:00]} 1... d6 {[%clk 0:03:00.1]} 2. c4 {[%clk 0:02:59.8]} 2...
Nf6 {[%clk 0:03:00.4]} 3. f3 {[%clk 0:02:58.6]} 3... e5 {[%clk 0:02:59.6]} 4.
dxe5 {[%clk 0:02:57.9]} 4... dxe5 {[%clk 0:02:59.2]} 5. Qxd8+ {[%clk 0:02:58.8]}
5... Kxd8 {[%clk 0:02:59]} 6. e4 {[%clk 0:02:59.7]} 6... c6 {[%clk 0:02:59]} 7.
Nc3 {[%clk 0:02:50.6]} 7... Nfd7 {[%clk 0:02:58.7]} 8. Be3 {[%clk 0:02:47.4]}
8... Bc5 {[%clk 0:02:57.7]} 9. Kf2 {[%clk 0:02:40.6]} 9... f6 {[%clk 0:02:52.8]}
10. Rd1 {[%clk 0:02:39.9]} 10... Ke7 {[%clk 0:02:50.9]} 11. Nge2 {[%clk
0:02:33.5]} 11... Bxe3+ {[%clk 0:02:44.9]} 12. Kxe3 {[%clk 0:02:32.4]} 12... a5
{[%clk 0:02:44.4]} 13. Ng3 {[%clk 0:02:31.5]} 13... Nc5 {[%clk 0:02:44]} 14. b3
{[%clk 0:02:26.1]} 14... Nba6 {[%clk 0:02:42.9]} 15. Bd3 {[%clk 0:02:11.4]}
15... Be6 {[%clk 0:02:37.7]} 16. Bb1 {[%clk 0:02:08.8]} 16... Rhd8 {[%clk
0:02:17.6]} 17. Nf5+ {[%clk 0:02:02.7]} 17... Bxf5 {[%clk 0:02:16.9]} 18. exf5
{[%clk 0:02:02.7]} 18... Rxd1 {[%clk 0:01:33.9]} 19. Rxd1 {[%clk 0:02:01.2]}
19... Nb4 {[%clk 0:01:27.1]} 20. Ne4 {[%clk 0:01:54.5]} 20... Nxe4 {[%clk
0:01:22.5]} 21. Kxe4 {[%clk 0:01:51.3]} 21... Na6 {[%clk 0:01:21.6]} 22. Ke3
{[%clk 0:01:42]} 22... a4 {[%clk 0:01:19.9]} 23. Bc2 {[%clk 0:01:24.3]} 23...
axb3 {[%clk 0:01:19.5]} 24. axb3 {[%clk 0:01:24.7]} 24... Nb4 {[%clk 0:01:14]}
25. Kd2 {[%clk 0:01:06.7]} 25... Ra2 {[%clk 0:00:53.4]} 26. Rc1 {[%clk
0:01:05.3]} 26... Kd6 {[%clk 0:00:49]} 27. Kc3 {[%clk 0:01:04.6]} 27... Kc5
{[%clk 0:00:49]} 28. g4 {[%clk 0:00:44.1]} 28... Rxc2+ {[%clk 0:00:44.9]} 29.
Rxc2 {[%clk 0:00:42.4]} 29... Nxc2 {[%clk 0:00:45.2]} 30. Kxc2 {[%clk
0:00:42.7]} 30... Kd4 {[%clk 0:00:45.5]} 31. Kd2 {[%clk 0:00:42.9]} 31... e4
{[%clk 0:00:46]} 32. f4 {[%clk 0:00:38.8]} 32... e3+ {[%clk 0:00:46]} 33. Ke2
{[%clk 0:00:38.8]} 33... c5 {[%clk 0:00:43.5]} 34. h4 {[%clk 0:00:31.1]} 34...
h6 {[%clk 0:00:40.4]} 35. g5 {[%clk 0:00:30]} 35... h5 {[%clk 0:00:40]} 0-1

[Event "*** SCC Grand Prix: Titled Tuesday Blitz"]
[Site "Chess.com"]
[Date "2020.07.07"]
[Round "4"]
[White "Aradej"]
[Black "GregShahade"]
[Result "1/2-1/2"]
[WhiteElo "2509"]
[BlackElo "2670"]
[TimeControl "180+1"]
[EndTime "10:39:21 PDT"]
[Termination "Game drawn by repetition"]

1. d4 {[%clk 0:03:00.9]} 1... Nf6 {[%clk 0:02:59.7]} 2. Nf3 {[%clk 0:03:00.4]}
2... g6 {[%clk 0:02:59.9]} 3. e3 {[%clk 0:03:00.3]} 3... Bg7 {[%clk 0:03:00.1]}
4. Be2 {[%clk 0:03:00.8]} 4... O-O {[%clk 0:03:00.3]} 5. O-O {[%clk 0:03:01.4]}
5... d6 {[%clk 0:03:00.8]} 6. c4 {[%clk 0:03:01.3]} 6... Nbd7 {[%clk 0:02:58.3]}
7. Nc3 {[%clk 0:03:00.4]} 7... e5 {[%clk 0:02:58.5]} 8. Qc2 {[%clk 0:03:00.3]}
8... Qe7 {[%clk 0:02:58.4]} 9. b3 {[%clk 0:02:58.2]} 9... a5 {[%clk 0:02:56.9]}
10. a3 {[%clk 0:02:56.8]} 10... Re8 {[%clk 0:02:54.2]} 11. Bb2 {[%clk 0:02:52]}
11... c6 {[%clk 0:02:44.8]} 12. b4 {[%clk 0:02:51.4]} 12... Nb8 {[%clk
0:02:24.5]} 13. dxe5 {[%clk 0:02:49.8]} 13... dxe5 {[%clk 0:02:23.6]} 14. c5
{[%clk 0:02:49.2]} 14... Bf5 {[%clk 0:02:21.7]} 15. Qb3 {[%clk 0:02:49.3]} 15...
Na6 {[%clk 0:02:14.6]} 16. Na4 {[%clk 0:02:36.6]} 16... Be6 {[%clk 0:02:04.3]}
17. Bc4 {[%clk 0:02:36.3]} 17... Bxc4 {[%clk 0:01:37.8]} 18. Qxc4 {[%clk
0:02:36.1]} 18... axb4 {[%clk 0:01:32.1]} 19. axb4 {[%clk 0:02:35.5]} 19... Rad8
{[%clk 0:01:32.7]} 20. Bxe5 {[%clk 0:02:27.9]} 20... Nd5 {[%clk 0:01:31.3]} 21.
Bxg7 {[%clk 0:02:26.5]} 21... Kxg7 {[%clk 0:01:32.2]} 22. b5 {[%clk 0:02:26]}
22... Nac7 {[%clk 0:01:26.1]} 23. bxc6 {[%clk 0:02:20.4]} 23... bxc6 {[%clk
0:01:27]} 24. Nb6 {[%clk 0:02:20]} 24... Ne6 {[%clk 0:01:23.2]} 25. Rfc1 {[%clk
0:02:14.8]} 25... Nxc5 {[%clk 0:01:14.4]} 26. Qxc5 {[%clk 0:02:14.6]} 26... Qxc5
{[%clk 0:01:13.3]} 27. Rxc5 {[%clk 0:02:15.1]} 27... Nxb6 {[%clk 0:01:14]} 28.
Rxc6 {[%clk 0:02:15.3]} 28... Nd5 {[%clk 0:01:14.2]} 29. Rac1 {[%clk 0:02:13.9]}
29... Re7 {[%clk 0:01:09.3]} 30. Rd1 {[%clk 0:02:09.7]} 30... Rb8 {[%clk
0:01:02.3]} 31. h3 {[%clk 0:02:09.7]} 31... Nf6 {[%clk 0:01:00.7]} 32. Rcd6
{[%clk 0:02:06.4]} 32... Ne4 {[%clk 0:00:58.6]} 33. R6d4 {[%clk 0:01:57.8]}
33... Rb2 {[%clk 0:00:57.8]} 34. Rf1 {[%clk 0:01:57.7]} 34... h6 {[%clk
0:00:55.8]} 35. g4 {[%clk 0:01:44.3]} 35... f5 {[%clk 0:00:42.3]} 36. Kg2 {[%clk
0:01:40.6]} 36... Rc7 {[%clk 0:00:36.4]} 37. gxf5 {[%clk 0:01:36.5]} 37... gxf5
{[%clk 0:00:36.6]} 38. Nh4 {[%clk 0:01:31.8]} 38... Kf6 {[%clk 0:00:36.7]} 39.
Rd5 {[%clk 0:01:31]} 39... Rg7+ {[%clk 0:00:33.2]} 40. Kh2 {[%clk 0:01:23.4]}
40... Rg5 {[%clk 0:00:30.1]} 41. Nf3 {[%clk 0:01:16.1]} 41... Rg7 {[%clk
0:00:18.1]} 42. Nd4 {[%clk 0:01:15.1]} 42... Rg5 {[%clk 0:00:18]} 43. Nf3 {[%clk
0:01:09.7]} 43... Rg7 {[%clk 0:00:17.9]} 44. Nh4 {[%clk 0:01:02.7]} 44... Rg5
{[%clk 0:00:16.5]} 45. Nf3 {[%clk 0:00:57.4]} 1/2-1/2